[Event "Titled Tuesday Blitz August 15 Late 2023"]
[White "Saucey, Michel"]
[Black "Labussiere, Yago"]
[WhiteFideId "601845"]
[BlackFideId "2186969"]
[WhiteElo "2268"]
[BlackElo "2360"]
[Result "0-1"]
[Round "10"]
[TimeControl "180+1"]
[Date "2023.08.15"]
[WhiteClock "0:00:02"]
[BlackClock "0:00:45"]
[Board "90"]

1. d4 {[%clk 0:03:00]}  Nf6 {[%clk 0:02:59]} 2. Nf3 {[%clk 0:02:58]}  d5 {[%clk 0:02:58]} 3. c4 {[%clk 0:02:58]}  dxc4 {[%clk 0:02:59]} 4. e3 {[%clk 0:02:58]}  e6 {[%clk 0:02:59]} 5. Bxc4 {[%clk 0:02:58]}  c5 {[%clk 0:03:00]} 6. O-O {[%clk 0:02:57]}  a6 {[%clk 0:03:00]} 7. dxc5 {[%clk 0:02:56]}  Bxc5 {[%clk 0:03:00]} 8. Qe2 {[%clk 0:02:51]}  O-O {[%clk 0:02:59]} 9. e4 {[%clk 0:02:46]}  b5 {[%clk 0:02:58]} 10. Bd3 {[%clk 0:02:43]}  g6 {[%clk 0:02:33]} 11. Nbd2 {[%clk 0:02:41]}  Bb7 {[%clk 0:02:33]} 12. Nb3 {[%clk 0:02:41]}  Be7 {[%clk 0:02:30]} 13. Bh6 {[%clk 0:02:35]}  Re8 {[%clk 0:02:30]} 14. Rfd1 {[%clk 0:02:33]}  Qb6 {[%clk 0:02:21]} 15. Be3 {[%clk 0:02:26]}  Qc7 {[%clk 0:02:18]} 16. Rac1 {[%clk 0:02:25]}  Nc6 {[%clk 0:02:18]} 17. Nc5 {[%clk 0:02:11]}  Rac8 {[%clk 0:02:16]} 18. Nxb7 {[%clk 0:02:09]}  Qxb7 {[%clk 0:02:17]} 19. a4 {[%clk 0:02:06]}  Nb4 {[%clk 0:02:09]} 20. axb5 {[%clk 0:01:55]}  Nxd3 {[%clk 0:02:08]} 21. Qxd3 {[%clk 0:01:47]}  Qxb5 {[%clk 0:02:03]} 22. Qxb5 {[%clk 0:01:44]}  axb5 {[%clk 0:02:04]} 23. e5 {[%clk 0:01:39]}  Nd5 {[%clk 0:02:04]} 24. Bg5 {[%clk 0:01:31]}  Kf8 {[%clk 0:01:55]} 25. Bxe7+ {[%clk 0:01:30]}  Kxe7 {[%clk 0:01:56]} 26. Ng5 {[%clk 0:01:30]}  h6 {[%clk 0:01:55]} 27. Ne4 {[%clk 0:01:29]}  Rxc1 {[%clk 0:01:49]} 28. Rxc1 {[%clk 0:01:29]}  Ra8 {[%clk 0:01:50]} 29. g3 {[%clk 0:01:17]}  g5 {[%clk 0:01:46]} 30. Nd6 {[%clk 0:01:07]}  b4 {[%clk 0:01:43]} 31. Rc5 {[%clk 0:00:57]}  Ra2 {[%clk 0:01:26]} 32. Rb5 {[%clk 0:00:56]}  Rxb2 {[%clk 0:01:23]} 33. Rb7+ {[%clk 0:00:56]}  Kd8 {[%clk 0:01:23]} 34. Nxf7+ {[%clk 0:00:55]}  Kc8 {[%clk 0:01:23]} 35. Nd6+ {[%clk 0:00:51]}  Kd8 {[%clk 0:01:23]} 36. Nf7+ {[%clk 0:00:47]}  Ke8 {[%clk 0:01:22]} 37. Nxh6 {[%clk 0:00:42]}  b3 {[%clk 0:01:20]} 38. Nf7 {[%clk 0:00:41]}  Rb1+ {[%clk 0:01:08]} 39. Kg2 {[%clk 0:00:40]}  b2 {[%clk 0:01:09]} 40. Nxg5 {[%clk 0:00:37]}  Nc3 {[%clk 0:00:57]} 41. Nxe6 {[%clk 0:00:35]}  Na4 {[%clk 0:00:56]} 42. f4 {[%clk 0:00:16]}  Rc1 {[%clk 0:00:55]} 43. Nc7+ {[%clk 0:00:07]}  Kd8 {[%clk 0:00:54]} 44. Ne6+ {[%clk 0:00:06]}  Ke8 {[%clk 0:00:54]} 45. Nc5 {[%clk 0:00:04]}  Rxc5 {[%clk 0:00:49]} 46. e6 {[%clk 0:00:03]}  Rc1 {[%clk 0:00:45]} 47. f5 {[%clk 0:00:02]}  b1=Q {[%clk 0:00:45]} 0-1


[Site "https://www.chess.com"]

[Event "Titled Tuesday Blitz August 15 Late 2023"]
[White "rionelG"]
[Black "LuxLinster"]
[WhiteElo "2351"]
[BlackElo "2254"]
[Result "0-1"]
[Round "10"]
[TimeControl "180+1"]
[Date "2023.08.15"]
[WhiteClock "0:00:00"]
[BlackClock "0:00:05"]
[Board "92"]

1. e4 {[%clk 0:03:00]}  e5 {[%clk 0:03:00]} 2. Nf3 {[%clk 0:03:00]}  Nc6 {[%clk 0:03:00]} 3. d4 {[%clk 0:03:01]}  exd4 {[%clk 0:03:00]} 4. Nxd4 {[%clk 0:03:02]}  Nf6 {[%clk 0:03:00]} 5. Nxc6 {[%clk 0:03:02]}  bxc6 {[%clk 0:03:01]} 6. e5 {[%clk 0:03:02]}  Qe7 {[%clk 0:03:01]} 7. Qe2 {[%clk 0:03:02]}  Nd5 {[%clk 0:03:02]} 8. c4 {[%clk 0:03:02]}  Nb6 {[%clk 0:03:01]} 9. Bd2 {[%clk 0:03:01]}  Qe6 {[%clk 0:02:52]} 10. Nc3 {[%clk 0:02:59]}  g6 {[%clk 0:02:48]} 11. Qe4 {[%clk 0:02:54]}  Bg7 {[%clk 0:02:48]} 12. f4 {[%clk 0:02:53]}  O-O {[%clk 0:02:45]} 13. Bd3 {[%clk 0:02:48]}  d5 {[%clk 0:02:41]} 14. exd6 {[%clk 0:02:46]}  cxd6 {[%clk 0:02:27]} 15. O-O-O {[%clk 0:02:45]}  d5 {[%clk 0:02:19]} 16. cxd5 {[%clk 0:02:39]}  cxd5 {[%clk 0:02:08]} 17. Qxe6 {[%clk 0:02:36]}  Bxe6 {[%clk 0:02:09]} 18. f5 {[%clk 0:02:25]}  gxf5 {[%clk 0:01:54]} 19. Kb1 {[%clk 0:02:19]}  Nc4 {[%clk 0:01:40]} 20. Bxc4 {[%clk 0:01:54]}  dxc4 {[%clk 0:01:40]} 21. Rhe1 {[%clk 0:01:51]}  Rfd8 {[%clk 0:01:30]} 22. Kc1 {[%clk 0:01:50]}  Rd3 {[%clk 0:01:28]} 23. Nb1 {[%clk 0:00:55]}  Rad8 {[%clk 0:01:20]} 24. Bc3 {[%clk 0:00:55]}  Bh6+ {[%clk 0:00:58]} 25. Nd2 {[%clk 0:00:54]}  f4 {[%clk 0:00:50]} 26. Nf3 {[%clk 0:00:51]}  Bg4 {[%clk 0:00:42]} 27. Kc2 {[%clk 0:00:50]}  Bf5 {[%clk 0:00:37]} 28. Kc1 {[%clk 0:00:50]}  Bg4 {[%clk 0:00:24]} 29. Kc2 {[%clk 0:00:49]}  Bg7 {[%clk 0:00:25]} 30. Bxg7 {[%clk 0:00:43]}  Kxg7 {[%clk 0:00:25]} 31. h3 {[%clk 0:00:40]}  Bxf3 {[%clk 0:00:23]} 32. gxf3 {[%clk 0:00:39]}  Rxd1 {[%clk 0:00:18]} 33. Rxd1 {[%clk 0:00:38]}  Rxd1 {[%clk 0:00:14]} 34. Kxd1 {[%clk 0:00:39]}  Kf6 {[%clk 0:00:14]} 35. Kd2 {[%clk 0:00:36]}  Kg5 {[%clk 0:00:14]} 36. Kc3 {[%clk 0:00:34]}  Kh4 {[%clk 0:00:14]} 37. Kxc4 {[%clk 0:00:34]}  Kxh3 {[%clk 0:00:15]} 38. b4 {[%clk 0:00:35]}  Kg3 {[%clk 0:00:15]} 39. b5 {[%clk 0:00:35]}  h5 {[%clk 0:00:15]} 40. a4 {[%clk 0:00:34]}  h4 {[%clk 0:00:15]} 41. a5 {[%clk 0:00:29]}  h3 {[%clk 0:00:15]} 42. b6 {[%clk 0:00:30]}  axb6 {[%clk 0:00:16]} 43. axb6 {[%clk 0:00:29]}  h2 {[%clk 0:00:16]} 44. b7 {[%clk 0:00:29]}  h1=Q {[%clk 0:00:16]} 45. b8=Q {[%clk 0:00:30]}  Qxf3 {[%clk 0:00:14]} 46. Qg8+ {[%clk 0:00:28]}  Kf2 {[%clk 0:00:14]} 47. Qxf7 {[%clk 0:00:28]}  Qe4+ {[%clk 0:00:14]} 48. Kc3 {[%clk 0:00:27]}  f3 {[%clk 0:00:15]} 49. Qf6 {[%clk 0:00:22]}  Ke2 {[%clk 0:00:12]} 50. Qh6 {[%clk 0:00:15]}  f2 {[%clk 0:00:09]} 51. Qd2+ {[%clk 0:00:15]}  Kf3 {[%clk 0:00:10]} 52. Qd1+ {[%clk 0:00:00]}  Kg2 {[%clk 0:00:05]} 0-1


[Site "https://www.chess.com"]

[Event "Titled Tuesday Blitz August 15 Late 2023"]
[White "De Souza, Cristiano Gomes"]
[Black "Beulen, Marcel"]
[WhiteFideId "2151758"]
[BlackFideId "1001450"]
[WhiteElo "2258"]
[BlackElo "2331"]
[Result "0-1"]
[Round "10"]
[TimeControl "180+1"]
[Date "2023.08.15"]
[WhiteClock "0:00:00"]
[BlackClock "0:00:03"]
[Board "93"]

1. d4 {[%clk 0:03:00]}  d5 {[%clk 0:02:59]} 2. c4 {[%clk 0:02:59]}  c6 {[%clk 0:02:59]} 3. Nf3 {[%clk 0:02:58]}  Nf6 {[%clk 0:02:59]} 4. Nc3 {[%clk 0:02:58]}  dxc4 {[%clk 0:02:59]} 5. a4 {[%clk 0:02:57]}  Bf5 {[%clk 0:02:58]} 6. e3 {[%clk 0:02:55]}  e6 {[%clk 0:02:57]} 7. Bxc4 {[%clk 0:02:54]}  Bb4 {[%clk 0:02:58]} 8. O-O {[%clk 0:02:53]}  Nbd7 {[%clk 0:02:57]} 9. Qe2 {[%clk 0:02:49]}  Bg6 {[%clk 0:02:57]} 10. Bd3 {[%clk 0:02:48]}  O-O {[%clk 0:02:56]} 11. Bd2 {[%clk 0:02:46]}  a5 {[%clk 0:02:47]} 12. Rfc1 {[%clk 0:02:43]}  Re8 {[%clk 0:02:44]} 13. Bxg6 {[%clk 0:02:41]}  hxg6 {[%clk 0:02:44]} 14. Ne1 {[%clk 0:02:38]}  e5 {[%clk 0:02:38]} 15. dxe5 {[%clk 0:02:14]}  Nxe5 {[%clk 0:02:38]} 16. h3 {[%clk 0:02:05]}  Qe7 {[%clk 0:02:30]} 17. Nd3 {[%clk 0:02:00]}  Nxd3 {[%clk 0:02:25]} 18. Qxd3 {[%clk 0:01:59]}  Rad8 {[%clk 0:02:25]} 19. Qe2 {[%clk 0:01:59]}  Qe6 {[%clk 0:02:10]} 20. Be1 {[%clk 0:01:56]}  Rd7 {[%clk 0:01:59]} 21. Rd1 {[%clk 0:01:54]}  Red8 {[%clk 0:01:58]} 22. Kf1 {[%clk 0:01:48]}  Qb3 {[%clk 0:01:50]} 23. Rxd7 {[%clk 0:01:44]}  Rxd7 {[%clk 0:01:49]} 24. Rd1 {[%clk 0:01:44]}  Rxd1 {[%clk 0:01:42]} 25. Qxd1 {[%clk 0:01:41]}  Qxb2 {[%clk 0:01:36]} 26. Ne2 {[%clk 0:01:37]}  Bxe1 {[%clk 0:00:55]} 27. Kxe1 {[%clk 0:01:34]}  Qb4+ {[%clk 0:00:53]} 28. Kf1 {[%clk 0:01:32]}  Nd5 {[%clk 0:00:53]} 29. Kg1 {[%clk 0:01:21]}  Qc4 {[%clk 0:00:52]} 30. Ng3 {[%clk 0:01:13]}  b5 {[%clk 0:00:48]} 31. axb5 {[%clk 0:01:06]}  cxb5 {[%clk 0:00:48]} 32. e4 {[%clk 0:01:07]}  Nf6 {[%clk 0:00:43]} 33. Qd8+ {[%clk 0:00:31]}  Kh7 {[%clk 0:00:43]} 34. Qxa5 {[%clk 0:00:30]}  b4 {[%clk 0:00:35]} 35. e5 {[%clk 0:00:26]}  Nd5 {[%clk 0:00:33]} 36. f3 {[%clk 0:00:18]}  Qd4+ {[%clk 0:00:24]} 37. Kf1 {[%clk 0:00:16]}  Qxe5 {[%clk 0:00:23]} 38. Ne4 {[%clk 0:00:16]}  f6 {[%clk 0:00:11]} 39. Qa7 {[%clk 0:00:09]}  b3 {[%clk 0:00:08]} 40. Qb7 {[%clk 0:00:08]}  b2 {[%clk 0:00:08]} 41. Kg1 {[%clk 0:00:07]}  Qd4+ {[%clk 0:00:08]} 42. Kh2 {[%clk 0:00:07]}  g5 {[%clk 0:00:06]} 43. Qb5 {[%clk 0:00:05]}  Kg6 {[%clk 0:00:05]} 44. Ng3 {[%clk 0:00:02]}  Qe5 {[%clk 0:00:05]} 45. Qb3 {[%clk 0:00:01]}  Nf4 {[%clk 0:00:05]} 46. Qc2+ {[%clk 0:00:00]}  Kf7 {[%clk 0:00:03]} 0-1


[Site "https://www.chess.com"]

[Event "Titled Tuesday Blitz August 15 Late 2023"]
[White "Gerbelli Neto, Eduardo"]
[Black "Curtis, John"]
[WhiteFideId "2103281"]
[BlackFideId "3200256"]
[WhiteElo "2328"]
[BlackElo "2078"]
[Result "0-1"]
[Round "10"]
[TimeControl "180+1"]
[Date "2023.08.15"]
[WhiteClock "0:00:19"]
[BlackClock "0:00:13"]
[Board "95"]

1. e4 {[%clk 0:03:00]}  c5 {[%clk 0:02:57]} 2. Nc3 {[%clk 0:03:00]}  e6 {[%clk 0:02:55]} 3. f4 {[%clk 0:03:00]}  b6 {[%clk 0:02:51]} 4. Nf3 {[%clk 0:02:59]}  Bb7 {[%clk 0:02:51]} 5. g3 {[%clk 0:02:57]}  Nf6 {[%clk 0:02:50]} 6. d3 {[%clk 0:02:57]}  d5 {[%clk 0:02:49]} 7. e5 {[%clk 0:02:52]}  d4 {[%clk 0:02:49]} 8. exf6 {[%clk 0:02:50]}  dxc3 {[%clk 0:02:49]} 9. bxc3 {[%clk 0:02:44]}  Qxf6 {[%clk 0:02:49]} 10. Bd2 {[%clk 0:02:39]}  Nc6 {[%clk 0:02:36]} 11. Bg2 {[%clk 0:02:39]}  g6 {[%clk 0:02:24]} 12. O-O {[%clk 0:02:39]}  Bg7 {[%clk 0:02:24]} 13. Ng5 {[%clk 0:02:32]}  O-O {[%clk 0:02:05]} 14. Ne4 {[%clk 0:02:17]}  Qe7 {[%clk 0:02:04]} 15. Qe2 {[%clk 0:02:10]}  Rad8 {[%clk 0:01:55]} 16. Rae1 {[%clk 0:02:06]}  Rfe8 {[%clk 0:01:44]} 17. Qf2 {[%clk 0:02:04]}  h6 {[%clk 0:01:36]} 18. g4 {[%clk 0:02:04]}  f5 {[%clk 0:01:25]} 19. gxf5 {[%clk 0:02:00]}  exf5 {[%clk 0:01:21]} 20. Ng5 {[%clk 0:01:46]}  Qd7 {[%clk 0:01:17]} 21. Nf3 {[%clk 0:01:42]}  Bf6 {[%clk 0:01:08]} 22. Qg3 {[%clk 0:01:39]}  Kh7 {[%clk 0:00:54]} 23. Ne5 {[%clk 0:01:10]}  Nxe5 {[%clk 0:00:49]} 24. fxe5 {[%clk 0:01:04]}  Bg7 {[%clk 0:00:48]} 25. Bxb7 {[%clk 0:00:58]}  Qxb7 {[%clk 0:00:47]} 26. h4 {[%clk 0:00:57]}  h5 {[%clk 0:00:40]} 27. Bf4 {[%clk 0:00:53]}  Re6 {[%clk 0:00:39]} 28. Kh2 {[%clk 0:00:52]}  Qd5 {[%clk 0:00:37]} 29. Re2 {[%clk 0:00:49]}  Qxa2 {[%clk 0:00:36]} 30. c4 {[%clk 0:00:45]}  Qa4 {[%clk 0:00:35]} 31. Rg1 {[%clk 0:00:43]}  Rd4 {[%clk 0:00:30]} 32. Reg2 {[%clk 0:00:38]}  Qd7 {[%clk 0:00:23]} 33. Qf3 {[%clk 0:00:38]}  Rxf4 {[%clk 0:00:19]} 34. Qxf4 {[%clk 0:00:35]}  Bxe5 {[%clk 0:00:19]} 35. Qxe5 {[%clk 0:00:35]}  Rxe5 {[%clk 0:00:20]} 36. Rxg6 {[%clk 0:00:36]}  Re2+ {[%clk 0:00:20]} 37. Kh1 {[%clk 0:00:31]}  Qb7+ {[%clk 0:00:18]} 38. R6g2 {[%clk 0:00:31]}  Qf3 {[%clk 0:00:15]} 39. Kh2 {[%clk 0:00:31]}  f4 {[%clk 0:00:13]} 40. Rxe2 {[%clk 0:00:24]}  Qxe2+ {[%clk 0:00:13]} 41. Rg2 {[%clk 0:00:19]}  f3 {[%clk 0:00:13]} 0-1


[Site "https://www.chess.com"]

[Event "Titled Tuesday Blitz August 15 Late 2023"]
[White "Okike, David"]
[Black "Navyblue1"]
[WhiteFideId "8500134"]
[WhiteElo "2317"]
[BlackElo "2029"]
[Result "1-0"]
[Round "10"]
[TimeControl "180+1"]
[Date "2023.08.15"]
[WhiteClock "0:01:04"]
[BlackClock "0:00:00"]
[Board "96"]

1. e4 {[%clk 0:03:00]}  c5 {[%clk 0:02:50]} 2. Nf3 {[%clk 0:03:00]}  d6 {[%clk 0:02:49]} 3. d4 {[%clk 0:03:00]}  cxd4 {[%clk 0:02:50]} 4. Nxd4 {[%clk 0:03:00]}  Nf6 {[%clk 0:02:50]} 5. Nc3 {[%clk 0:03:00]}  a6 {[%clk 0:02:50]} 6. Bg5 {[%clk 0:03:00]}  Nbd7 {[%clk 0:02:50]} 7. f3 {[%clk 0:03:00]}  Qc7 {[%clk 0:02:46]} 8. Qd2 {[%clk 0:03:00]}  e6 {[%clk 0:02:41]} 9. O-O-O {[%clk 0:03:00]}  Be7 {[%clk 0:02:41]} 10. h4 {[%clk 0:02:59]}  b5 {[%clk 0:02:39]} 11. a3 {[%clk 0:02:59]}  Bb7 {[%clk 0:02:38]} 12. Rh3 {[%clk 0:02:59]}  Rc8 {[%clk 0:02:36]} 13. Rg3 {[%clk 0:02:58]}  Qa5 {[%clk 0:02:32]} 14. Nb3 {[%clk 0:02:57]}  Qc7 {[%clk 0:02:29]} 15. Be3 {[%clk 0:02:56]}  Nh5 {[%clk 0:02:23]} 16. Rh3 {[%clk 0:02:56]}  Nc5 {[%clk 0:02:13]} 17. Kb1 {[%clk 0:02:55]}  Nf6 {[%clk 0:02:04]} 18. Nd4 {[%clk 0:02:47]}  Qa5 {[%clk 0:01:55]} 19. Nb3 {[%clk 0:02:39]}  Nxb3 {[%clk 0:01:47]} 20. cxb3 {[%clk 0:02:39]}  Qc7 {[%clk 0:01:42]} 21. b4 {[%clk 0:02:36]}  d5 {[%clk 0:01:34]} 22. e5 {[%clk 0:02:35]}  Qxe5 {[%clk 0:01:31]} 23. Bd4 {[%clk 0:02:34]}  Qc7 {[%clk 0:01:26]} 24. g4 {[%clk 0:02:29]}  O-O {[%clk 0:01:19]} 25. h5 {[%clk 0:02:27]}  e5 {[%clk 0:01:12]} 26. Bf2 {[%clk 0:02:27]}  d4 {[%clk 0:01:11]} 27. Na2 {[%clk 0:02:25]}  Bd5 {[%clk 0:01:08]} 28. g5 {[%clk 0:02:22]}  Nd7 {[%clk 0:01:04]} 29. Bd3 {[%clk 0:02:21]}  Qd6 {[%clk 0:00:50]} 30. Nc1 {[%clk 0:02:18]}  Nb6 {[%clk 0:00:43]} 31. Qe2 {[%clk 0:02:08]}  Qe6 {[%clk 0:00:35]} 32. Rhh1 {[%clk 0:02:04]}  Bxg5 {[%clk 0:00:29]} 33. Bg3 {[%clk 0:02:01]}  Rfe8 {[%clk 0:00:22]} 34. Rdg1 {[%clk 0:02:00]}  Nc4 {[%clk 0:00:19]} 35. Bf2 {[%clk 0:01:45]}  h6 {[%clk 0:00:18]} 36. Rxg5 {[%clk 0:01:42]}  hxg5 {[%clk 0:00:18]} 37. h6 {[%clk 0:01:42]}  gxh6 {[%clk 0:00:18]} 38. Ka1 {[%clk 0:01:36]}  e4 {[%clk 0:00:15]} 39. fxe4 {[%clk 0:01:35]}  Bxe4 {[%clk 0:00:15]} 40. Qh5 {[%clk 0:01:33]}  Bxd3 {[%clk 0:00:14]} 41. Nxd3 {[%clk 0:01:34]}  Ne3 {[%clk 0:00:13]} 42. Qxh6 {[%clk 0:01:31]}  Qxh6 {[%clk 0:00:13]} 43. Rxh6 {[%clk 0:01:31]}  Rc1+ {[%clk 0:00:11]} 44. Ka2 {[%clk 0:01:31]}  Rc2 {[%clk 0:00:11]} 45. Rxa6 {[%clk 0:01:27]}  Nc4 {[%clk 0:00:09]} 46. Kb3 {[%clk 0:01:16]}  Ree2 {[%clk 0:00:09]} 47. Bxd4 {[%clk 0:01:15]}  Rcd2 {[%clk 0:00:06]} 48. Kc3 {[%clk 0:01:13]}  Rc2+ {[%clk 0:00:06]} 49. Kb3 {[%clk 0:01:12]}  Red2 {[%clk 0:00:06]} 50. Ne1 {[%clk 0:01:10]}  Rc1 {[%clk 0:00:03]} 51. Nf3 {[%clk 0:01:08]}  Rd3+ {[%clk 0:00:02]} 52. Ka2 {[%clk 0:01:08]}  Rxf3 {[%clk 0:00:02]} 53. Ra8+ {[%clk 0:01:07]}  Kh7 {[%clk 0:00:03]} 54. Rb8 {[%clk 0:01:05]}  Rc2 {[%clk 0:00:00]} 55. Rxb5 {[%clk 0:01:04]} 1-0


[Site "https://www.chess.com"]

[Event "Titled Tuesday Blitz August 15 Late 2023"]
[White "Romero Ruscalleda, Josep"]
[Black "UgarteCesar"]
[WhiteFideId "2231859"]
[WhiteElo "2398"]
[BlackElo "2309"]
[Result "1-0"]
[Round "10"]
[TimeControl "180+1"]
[Date "2023.08.15"]
[WhiteClock "0:02:04"]
[BlackClock "0:02:11"]
[Board "97"]

1. e4 {[%clk 0:03:00]}  c5 {[%clk 0:02:59]} 2. c3 {[%clk 0:03:00]}  d5 {[%clk 0:02:59]} 3. exd5 {[%clk 0:03:00]}  Qxd5 {[%clk 0:03:00]} 4. Nf3 {[%clk 0:03:01]}  Nc6 {[%clk 0:03:00]} 5. Na3 {[%clk 0:02:57]}  a6 {[%clk 0:02:59]} 6. Bc4 {[%clk 0:02:57]}  Qe4+ {[%clk 0:02:59]} 7. Qe2 {[%clk 0:02:57]}  Qxe2+ {[%clk 0:02:59]} 8. Bxe2 {[%clk 0:02:57]}  Nf6 {[%clk 0:03:00]} 9. O-O {[%clk 0:02:57]}  e6 {[%clk 0:02:56]} 10. Re1 {[%clk 0:02:56]}  b5 {[%clk 0:02:54]} 11. Nc2 {[%clk 0:02:55]}  Be7 {[%clk 0:02:53]} 12. a4 {[%clk 0:02:54]}  Rb8 {[%clk 0:02:49]} 13. axb5 {[%clk 0:02:53]}  axb5 {[%clk 0:02:50]} 14. d4 {[%clk 0:02:51]}  O-O {[%clk 0:02:47]} 15. Bf4 {[%clk 0:02:47]}  Rb7 {[%clk 0:02:42]} 16. Ne5 {[%clk 0:02:21]}  Nxe5 {[%clk 0:02:37]} 17. Bxe5 {[%clk 0:02:18]}  b4 {[%clk 0:02:32]} 18. Bf3 {[%clk 0:02:15]}  Rb6 {[%clk 0:02:28]} 19. dxc5 {[%clk 0:02:11]}  Bxc5 {[%clk 0:02:28]} 20. cxb4 {[%clk 0:02:05]}  Bxb4 {[%clk 0:02:27]} 21. Nxb4 {[%clk 0:02:05]}  Rxb4 {[%clk 0:02:28]} 22. Bd6 {[%clk 0:02:05]}  Rxb2 {[%clk 0:02:15]} 23. Bxf8 {[%clk 0:02:05]}  Kxf8 {[%clk 0:02:16]} 24. Ra8 {[%clk 0:02:04]}  Rc2 {[%clk 0:02:11]} 25. Bb7 {[%clk 0:02:04]} 1-0


[Site "https://www.chess.com"]

[Event "Titled Tuesday Blitz August 15 Late 2023"]
[White "Bryant, Todd"]
[Black "KSho99"]
[WhiteFideId "2031299"]
[WhiteElo "2345"]
[BlackElo "2197"]
[Result "0-1"]
[Round "10"]
[TimeControl "180+1"]
[Date "2023.08.15"]
[WhiteClock "0:00:27"]
[BlackClock "0:00:12"]
[Board "98"]

1. e4 {[%clk 0:03:00]}  e6 {[%clk 0:02:59]} 2. d4 {[%clk 0:03:00]}  d5 {[%clk 0:03:00]} 3. e5 {[%clk 0:03:01]}  c5 {[%clk 0:02:59]} 4. c3 {[%clk 0:03:01]}  Bd7 {[%clk 0:02:58]} 5. Nf3 {[%clk 0:02:57]}  Qb6 {[%clk 0:02:58]} 6. Bd3 {[%clk 0:02:31]}  Bb5 {[%clk 0:02:58]} 7. O-O {[%clk 0:02:31]}  Bxd3 {[%clk 0:02:57]} 8. Qxd3 {[%clk 0:02:32]}  Nc6 {[%clk 0:02:53]} 9. dxc5 {[%clk 0:02:29]}  Bxc5 {[%clk 0:02:52]} 10. b4 {[%clk 0:02:30]}  Bf8 {[%clk 0:02:50]} 11. Be3 {[%clk 0:02:28]}  Qc7 {[%clk 0:02:49]} 12. Na3 {[%clk 0:02:11]}  a6 {[%clk 0:02:44]} 13. c4 {[%clk 0:01:46]}  Nxb4 {[%clk 0:02:37]} 14. Qe2 {[%clk 0:01:35]}  Ne7 {[%clk 0:02:28]} 15. Rac1 {[%clk 0:01:27]}  Nec6 {[%clk 0:02:24]} 16. cxd5 {[%clk 0:01:25]}  Nxd5 {[%clk 0:02:24]} 17. Nc4 {[%clk 0:01:24]}  Be7 {[%clk 0:02:11]} 18. Nd4 {[%clk 0:01:09]}  Nxd4 {[%clk 0:01:35]} 19. Bxd4 {[%clk 0:01:08]}  Qd8 {[%clk 0:01:34]} 20. Qg4 {[%clk 0:00:57]}  O-O {[%clk 0:01:29]} 21. Rc3 {[%clk 0:00:42]}  Nxc3 {[%clk 0:01:17]} 22. Bxc3 {[%clk 0:00:41]}  Qd3 {[%clk 0:01:08]} 23. Ba1 {[%clk 0:00:36]}  Rfd8 {[%clk 0:01:02]} 24. Nd6 {[%clk 0:00:35]}  Qg6 {[%clk 0:00:45]} 25. Qd4 {[%clk 0:00:31]}  b5 {[%clk 0:00:36]} 26. h4 {[%clk 0:00:29]}  Rac8 {[%clk 0:00:25]} 27. Nxc8 {[%clk 0:00:29]}  Rxc8 {[%clk 0:00:18]} 28. Re1 {[%clk 0:00:27]}  h5 {[%clk 0:00:14]} 29. Re3 {[%clk 0:00:26]}  Rc1+ {[%clk 0:00:12]} 30. Kh2 {[%clk 0:00:25]}  Bc5 {[%clk 0:00:12]} 31. Qd8+ {[%clk 0:00:18]}  Kh7 {[%clk 0:00:11]} 32. Rg3 {[%clk 0:00:19]}  Qb1 {[%clk 0:00:08]} 33. Rh3 {[%clk 0:00:12]}  Rh1+ {[%clk 0:00:07]} 34. Kg3 {[%clk 0:00:12]}  Rxh3+ {[%clk 0:00:06]} 35. Kxh3 {[%clk 0:00:11]}  Qxa1 {[%clk 0:00:07]} 36. Qg5 {[%clk 0:00:10]}  Qc3+ {[%clk 0:00:06]} 37. f3 {[%clk 0:00:10]}  g6 {[%clk 0:00:06]} 38. Qf6 {[%clk 0:00:10]}  Kg8 {[%clk 0:00:06]} 39. Qd8+ {[%clk 0:00:10]}  Bf8 {[%clk 0:00:06]} 40. Qf6 {[%clk 0:00:10]}  Qa3 {[%clk 0:00:05]} 41. Qf4 {[%clk 0:00:11]}  Qxa2 {[%clk 0:00:05]} 42. g4 {[%clk 0:00:12]}  hxg4+ {[%clk 0:00:04]} 43. fxg4 {[%clk 0:00:12]}  Qb3+ {[%clk 0:00:04]} 44. Kg2 {[%clk 0:00:12]}  Qc2+ {[%clk 0:00:04]} 45. Kh3 {[%clk 0:00:12]}  Qd3+ {[%clk 0:00:05]} 46. Kg2 {[%clk 0:00:13]}  Qc4 {[%clk 0:00:05]} 47. Qf3 {[%clk 0:00:13]}  Qd5 {[%clk 0:00:04]} 48. h5 {[%clk 0:00:13]}  Qxf3+ {[%clk 0:00:04]} 49. Kxf3 {[%clk 0:00:14]}  gxh5 {[%clk 0:00:05]} 50. Ke4 {[%clk 0:00:15]}  hxg4 {[%clk 0:00:05]} 51. Kf4 {[%clk 0:00:16]}  b4 {[%clk 0:00:05]} 52. Kxg4 {[%clk 0:00:17]}  a5 {[%clk 0:00:06]} 53. Kf3 {[%clk 0:00:18]}  a4 {[%clk 0:00:06]} 54. Ke2 {[%clk 0:00:19]}  a3 {[%clk 0:00:07]} 55. Kd2 {[%clk 0:00:19]}  Kg7 {[%clk 0:00:07]} 56. Kc2 {[%clk 0:00:19]}  Kg6 {[%clk 0:00:08]} 57. Kb3 {[%clk 0:00:20]}  Kf5 {[%clk 0:00:09]} 58. Ka2 {[%clk 0:00:21]}  Kxe5 {[%clk 0:00:10]} 59. Kb3 {[%clk 0:00:21]}  Kd6 {[%clk 0:00:10]} 60. Ka2 {[%clk 0:00:22]}  f5 {[%clk 0:00:11]} 61. Kb3 {[%clk 0:00:23]}  Kd5 {[%clk 0:00:11]} 62. Ka2 {[%clk 0:00:24]}  Kc4 {[%clk 0:00:12]} 63. Ka1 {[%clk 0:00:24]}  b3 {[%clk 0:00:12]} 64. Kb1 {[%clk 0:00:25]}  Kc3 {[%clk 0:00:13]} 65. Ka1 {[%clk 0:00:25]}  Be7 {[%clk 0:00:12]} 66. Kb1 {[%clk 0:00:26]}  Bf6 {[%clk 0:00:12]} 67. Ka1 {[%clk 0:00:27]}  Kc2# {[%clk 0:00:12]} 0-1


[Site "https://www.chess.com"]

[Event "Titled Tuesday Blitz August 15 Late 2023"]
[White "Jahnz, Fabian"]
[Black "Bongo Akanga Ndjila, Barthelemy"]
[WhiteFideId "4653300"]
[BlackFideId "10609431"]
[WhiteElo "2317"]
[BlackElo "2047"]
[Result "1-0"]
[Round "10"]
[TimeControl "180+1"]
[Date "2023.08.15"]
[WhiteClock "0:01:55"]
[BlackClock "0:00:55"]
[Board "100"]

1. e4 {[%clk 0:03:00]}  e6 {[%clk 0:02:54]} 2. d4 {[%clk 0:02:57]}  d5 {[%clk 0:02:54]} 3. Nc3 {[%clk 0:02:57]}  Nf6 {[%clk 0:02:52]} 4. exd5 {[%clk 0:02:57]}  exd5 {[%clk 0:02:52]} 5. Bd3 {[%clk 0:02:57]}  Bb4 {[%clk 0:02:48]} 6. Ne2 {[%clk 0:02:48]}  O-O {[%clk 0:02:47]} 7. O-O {[%clk 0:02:48]}  c6 {[%clk 0:02:44]} 8. a3 {[%clk 0:02:48]}  Bd6 {[%clk 0:02:43]} 9. h3 {[%clk 0:02:47]}  Re8 {[%clk 0:02:42]} 10. Bf4 {[%clk 0:02:45]}  Qc7 {[%clk 0:02:39]} 11. Bxd6 {[%clk 0:02:44]}  Qxd6 {[%clk 0:02:38]} 12. Qd2 {[%clk 0:02:44]}  Nbd7 {[%clk 0:02:35]} 13. Qf4 {[%clk 0:02:41]}  Qf8 {[%clk 0:02:18]} 14. Ng3 {[%clk 0:02:38]}  Nb6 {[%clk 0:02:13]} 15. Rfe1 {[%clk 0:02:34]}  Be6 {[%clk 0:02:08]} 16. h4 {[%clk 0:02:32]}  Bg4 {[%clk 0:01:55]} 17. f3 {[%clk 0:02:19]}  Rxe1+ {[%clk 0:01:54]} 18. Rxe1 {[%clk 0:02:18]}  Re8 {[%clk 0:01:53]} 19. Rxe8 {[%clk 0:02:16]}  Qxe8 {[%clk 0:01:50]} 20. fxg4 {[%clk 0:02:16]}  Qe1+ {[%clk 0:01:46]} 21. Kh2 {[%clk 0:02:16]}  Nbd7 {[%clk 0:01:40]} 22. g5 {[%clk 0:02:13]}  Ne4 {[%clk 0:01:37]} 23. Ncxe4 {[%clk 0:02:12]}  dxe4 {[%clk 0:01:37]} 24. Qxe4 {[%clk 0:02:11]}  Qd1 {[%clk 0:01:35]} 25. Qxh7+ {[%clk 0:02:10]}  Kf8 {[%clk 0:01:36]} 26. Nf5 {[%clk 0:02:03]}  Ke8 {[%clk 0:01:26]} 27. Nxg7+ {[%clk 0:01:58]}  Ke7 {[%clk 0:01:25]} 28. Qe4+ {[%clk 0:01:58]}  Kf8 {[%clk 0:01:24]} 29. Nf5 {[%clk 0:01:58]}  Kg8 {[%clk 0:01:02]} 30. Qe8+ {[%clk 0:01:56]}  Nf8 {[%clk 0:01:01]} 31. Nh6+ {[%clk 0:01:55]}  Kg7 {[%clk 0:01:00]} 32. Qe5+ {[%clk 0:01:55]}  f6 {[%clk 0:00:55]} 33. Qxf6# {[%clk 0:01:55]} 1-0


[Site "https://www.chess.com"]